[Event "Live Chess"]
[Site "Chess.com"]
[Date "2023.05.21"]
[Round "-"]
[White "gmnorfolk"]
[Black "jimwad"]
[Result "1-0"]
[WhiteElo "2126"]
[BlackElo "1254"]
[TimeControl "300"]
[EndTime "17:45:51 PDT"]
[Termination "gmnorfolk won by resignation"]

1. d4 {[%clk 0:04:54.8]} 1... d5 {[%clk 0:04:58.9]} 2. c4 {[%clk 0:04:54.2]}
2... c6 {[%clk 0:04:58.1]} 3. cxd5 {[%clk 0:04:53.2]} 3... cxd5 {[%clk
0:04:56.5]} 4. Nc3 {[%clk 0:04:52.8]} 4... Nc6 {[%clk 0:04:55.7]} 5. Bf4 {[%clk
0:04:52.3]} 5... Nf6 {[%clk 0:04:54.1]} 6. e3 {[%clk 0:04:51]} 6... Bf5 {[%clk
0:04:52.2]} 7. Nf3 {[%clk 0:04:48.1]} 7... a6 {[%clk 0:04:50.3]} 8. Be2 {[%clk
0:04:43.9]} 8... e6 {[%clk 0:04:49.1]} 9. h3 {[%clk 0:04:43.2]} 9... Bb4 {[%clk
0:04:45.6]} 10. O-O {[%clk 0:04:41.5]} 10... Bxc3 {[%clk 0:04:44.8]} 11. bxc3
{[%clk 0:04:38.5]} 11... O-O {[%clk 0:04:43.9]} 12. c4 {[%clk 0:04:34.5]} 12...
dxc4 {[%clk 0:04:41.9]} 13. Bxc4 {[%clk 0:04:32.7]} 13... Rc8 {[%clk 0:04:37.6]}
14. Be2 {[%clk 0:04:28.7]} 14... Nd5 {[%clk 0:04:22.9]} 15. Bh2 {[%clk 0:04:27]}
15... Nc3 {[%clk 0:04:15.8]} 16. Qd2 {[%clk 0:04:24.5]} 16... Nxe2+ {[%clk
0:04:14.6]} 17. Qxe2 {[%clk 0:04:23.6]} 17... Ne7 {[%clk 0:04:09.8]} 18. e4
{[%clk 0:04:21.9]} 18... Bg6 {[%clk 0:04:05.7]} 19. Rfd1 {[%clk 0:04:21.1]}
19... Nc6 {[%clk 0:04:01.2]} 20. Qd2 {[%clk 0:04:15.4]} 20... Bxe4 {[%clk
0:03:57.1]} 21. Qe3 {[%clk 0:04:10.5]} 21... Bxf3 {[%clk 0:03:54.8]} 22. Qxf3
{[%clk 0:04:09.5]} 22... Nxd4 {[%clk 0:03:47.1]} 23. Qxb7 {[%clk 0:04:05.6]}
23... Qf6 {[%clk 0:03:31.1]} 24. Qxa6 {[%clk 0:03:58.7]} 24... Qxf2+ {[%clk
0:03:28.6]} 25. Kxf2 {[%clk 0:03:55.5]} 25... Rc2+ {[%clk 0:03:23.4]} 26. Kg1
{[%clk 0:03:47.8]} 26... Ne2+ {[%clk 0:03:21.5]} 27. Kh1 {[%clk 0:03:45.3]}
27... Nc3 {[%clk 0:03:07.3]} 28. Qd3 {[%clk 0:03:35.2]} 28... Nxd1 {[%clk
0:03:03.8]} 29. Qxc2 {[%clk 0:03:32.1]} 29... Ne3 {[%clk 0:03:02.7]} 30. Qc5
{[%clk 0:03:28.1]} 30... Nf5 {[%clk 0:02:54.3]} 31. Rc1 {[%clk 0:03:24.5]} 31...
h6 {[%clk 0:02:51.9]} 32. Qxf8+ {[%clk 0:03:19.1]} 32... Kxf8 {[%clk 0:02:49.5]}
33. a4 {[%clk 0:03:18.7]} 1-0

[Event "Live Chess"]
[Site "Chess.com"]
[Date "2023.05.21"]
[Round "-"]
[White "smoggyrabbit"]
[Black "Biranidun"]
[Result "0-1"]
[WhiteElo "1747"]
[BlackElo "2639"]
[TimeControl "300"]
[EndTime "17:46:17 PDT"]
[Termination "Biranidun won on time"]

1. d4 {[%clk 0:04:59.1]} 1... Nf6 {[%clk 0:04:59]} 2. Nf3 {[%clk 0:04:57.7]}
2... g6 {[%clk 0:04:57.5]} 3. e3 {[%clk 0:04:56.6]} 3... Bg7 {[%clk 0:04:57]} 4.
Be2 {[%clk 0:04:55.4]} 4... O-O {[%clk 0:04:56.9]} 5. O-O {[%clk 0:04:54.5]}
5... d6 {[%clk 0:04:56.7]} 6. b3 {[%clk 0:04:52.7]} 6... c5 {[%clk 0:04:55.5]}
7. Bb2 {[%clk 0:04:51.4]} 7... cxd4 {[%clk 0:04:54.9]} 8. exd4 {[%clk
0:04:50.1]} 8... d5 {[%clk 0:04:54.4]} 9. Nbd2 {[%clk 0:04:44.8]} 9... Nc6
{[%clk 0:04:54.3]} 10. c4 {[%clk 0:04:40.3]} 10... Bf5 {[%clk 0:04:53.5]} 11.
Ne5 {[%clk 0:04:31.1]} 11... Rc8 {[%clk 0:04:51.3]} 12. Nxc6 {[%clk 0:04:25.4]}
12... Rxc6 {[%clk 0:04:51.2]} 13. Rc1 {[%clk 0:04:20.1]} 13... Qa5 {[%clk
0:04:46]} 14. cxd5 {[%clk 0:04:09.9]} 14... Rxc1 {[%clk 0:04:44.2]} 15. Qxc1
{[%clk 0:04:06.5]} 15... Nxd5 {[%clk 0:04:40.9]} 16. Bc4 {[%clk 0:03:54]} 16...
Bh6 {[%clk 0:04:34.6]} 17. Bxd5 {[%clk 0:03:48.4]} 17... Qxd5 {[%clk 0:04:30.9]}
18. Qc4 {[%clk 0:03:37.6]} 18... Qxc4 {[%clk 0:04:22.5]} 19. Nxc4 {[%clk
0:03:37.5]} 19... Rd8 {[%clk 0:04:21]} 20. Re1 {[%clk 0:03:19.7]} 20... Be6
{[%clk 0:04:17]} 21. Rd1 {[%clk 0:03:12.7]} 21... Bg7 {[%clk 0:04:03]} 22. Kf1
{[%clk 0:02:52.4]} 22... b6 {[%clk 0:04:01.4]} 23. Ke2 {[%clk 0:02:49.8]} 23...
Bd5 {[%clk 0:03:59.4]} 24. Ne3 {[%clk 0:02:48]} 24... Bb7 {[%clk 0:03:57.2]} 25.
Rd2 {[%clk 0:02:38.6]} 25... e6 {[%clk 0:03:55.1]} 26. f3 {[%clk 0:02:35.8]}
26... h5 {[%clk 0:03:53.7]} 27. Nc4 {[%clk 0:02:30]} 27... Ba6 {[%clk
0:03:52.5]} 28. Kf2 {[%clk 0:02:27]} 28... Rd5 {[%clk 0:03:46.7]} 29. Ne3 {[%clk
0:02:22.8]} 29... Rd7 {[%clk 0:03:45.8]} 30. Ke1 {[%clk 0:01:59.6]} 30... Bb7
{[%clk 0:03:43]} 31. Nc4 {[%clk 0:01:58]} 31... h4 {[%clk 0:03:36.2]} 32. Ne5
{[%clk 0:01:54.1]} 32... Rc7 {[%clk 0:03:32.2]} 33. Nc4 {[%clk 0:01:51.2]} 33...
h3 {[%clk 0:03:30.1]} 34. gxh3 {[%clk 0:01:29.5]} 34... Bxf3 {[%clk 0:03:28.5]}
35. Ne3 {[%clk 0:01:12.7]} 35... Bh6 {[%clk 0:03:25]} 36. Kf2 {[%clk 0:01:09.9]}
36... Be4 {[%clk 0:03:24.1]} 37. Rd1 {[%clk 0:01:04.1]} 37... Bf4 {[%clk
0:03:03.5]} 38. Rc1 {[%clk 0:00:37.3]} 38... Rxc1 {[%clk 0:03:01.6]} 39. Bxc1
{[%clk 0:00:37.2]} 39... f5 {[%clk 0:02:59.2]} 40. Kg1 {[%clk 0:00:20.9]} 40...
Bb1 {[%clk 0:02:58.2]} 41. Bd2 {[%clk 0:00:18.4]} 41... Bxa2 {[%clk 0:02:56.8]}
42. Nc4 {[%clk 0:00:17.6]} 42... Bxd2 {[%clk 0:02:55.7]} 43. Nxd2 {[%clk
0:00:17.5]} 43... b5 {[%clk 0:02:53.7]} 44. Kf2 {[%clk 0:00:16.4]} 44... a5
{[%clk 0:02:53.3]} 45. Ke3 {[%clk 0:00:15.6]} 45... a4 {[%clk 0:02:52.8]} 46.
bxa4 {[%clk 0:00:14.6]} 46... bxa4 {[%clk 0:02:52.7]} 47. Kd3 {[%clk 0:00:14.1]}
47... Bd5 {[%clk 0:02:51.9]} 48. Kc3 {[%clk 0:00:13.3]} 48... Kh7 {[%clk
0:02:51]} 49. Kb4 {[%clk 0:00:12.5]} 49... Kh6 {[%clk 0:02:48.2]} 50. Kxa4
{[%clk 0:00:11.3]} 50... Kh5 {[%clk 0:02:48.1]} 51. Nf3 {[%clk 0:00:09.1]} 51...
Bxf3 {[%clk 0:02:46.3]} 52. Kb4 {[%clk 0:00:07.8]} 52... Bd5 {[%clk 0:02:45.7]}
53. Kc5 {[%clk 0:00:07.4]} 53... Kh4 {[%clk 0:02:45.6]} 54. Kd6 {[%clk
0:00:06.8]} 54... Kxh3 {[%clk 0:02:45.5]} 55. Ke5 {[%clk 0:00:06.4]} 55... Kxh2
{[%clk 0:02:45.1]} 56. Kf6 {[%clk 0:00:06.3]} 56... f4 {[%clk 0:02:44.5]} 57.
Kxg6 {[%clk 0:00:05.4]} 57... f3 {[%clk 0:02:44.4]} 0-1

[Event "Live Chess"]
[Site "Chess.com"]
[Date "2023.05.21"]
[Round "-"]
[White "Missedidea"]
[Black "alanmike75"]
[Result "1-0"]
[WhiteElo "1837"]
[BlackElo "1559"]
[TimeControl "300"]
[EndTime "17:46:29 PDT"]
[Termination "Missedidea won on time"]

1. d4 {[%clk 0:04:58.7]} 1... d5 {[%clk 0:04:56.8]} 2. c4 {[%clk 0:04:57.4]}
2... c6 {[%clk 0:04:54]} 3. Nf3 {[%clk 0:04:54.5]} 3... Nf6 {[%clk 0:04:52.8]}
4. Nc3 {[%clk 0:04:53.4]} 4... e6 {[%clk 0:04:51.7]} 5. Bg5 {[%clk 0:04:52.3]}
5... Be7 {[%clk 0:04:50.5]} 6. e3 {[%clk 0:04:51.3]} 6... Nbd7 {[%clk
0:04:49.3]} 7. Rc1 {[%clk 0:04:48.2]} 7... Nf8 {[%clk 0:04:47.2]} 8. Bd3 {[%clk
0:04:45]} 8... Ng6 {[%clk 0:04:42.9]} 9. h4 {[%clk 0:04:35.4]} 9... h6 {[%clk
0:04:37.3]} 10. Bxf6 {[%clk 0:04:29.2]} 10... Bxf6 {[%clk 0:04:35.8]} 11. h5
{[%clk 0:04:28.2]} 11... Ne7 {[%clk 0:04:31.7]} 12. Ne5 {[%clk 0:04:18.4]} 12...
Bxe5 {[%clk 0:04:18.7]} 13. dxe5 {[%clk 0:04:16.7]} 13... dxc4 {[%clk
0:04:17.4]} 14. Bxc4 {[%clk 0:04:14.6]} 14... Qxd1+ {[%clk 0:04:15.9]} 15. Rxd1
{[%clk 0:04:12.2]} 15... Nd5 {[%clk 0:04:04.3]} 16. Ne4 {[%clk 0:04:06]} 16...
Bd7 {[%clk 0:03:43.1]} 17. Nc5 {[%clk 0:03:57.9]} 17... Bc8 {[%clk 0:03:34.3]}
18. Rh4 {[%clk 0:03:52.5]} 18... Ke7 {[%clk 0:03:29.8]} 19. e4 {[%clk
0:03:38.4]} 19... Nb6 {[%clk 0:03:23.2]} 20. Bb3 {[%clk 0:03:36.1]} 20... Nd7
{[%clk 0:03:21]} 21. Nd3 {[%clk 0:03:30.3]} 21... b6 {[%clk 0:03:10.5]} 22. Rg4
{[%clk 0:03:27.5]} 22... Rg8 {[%clk 0:03:03.3]} 23. f4 {[%clk 0:03:25.4]} 23...
c5 {[%clk 0:02:55.6]} 24. Bc4 {[%clk 0:03:03.3]} 24... Bb7 {[%clk 0:02:52.7]}
25. f5 {[%clk 0:02:50.2]} 25... Rad8 {[%clk 0:02:39.3]} 26. Ke2 {[%clk
0:02:35.4]} 26... a6 {[%clk 0:02:29.5]} 27. a4 {[%clk 0:02:33.6]} 27... Nb8
{[%clk 0:02:11.6]} 28. b4 {[%clk 0:02:17.8]} 28... cxb4 {[%clk 0:01:59.1]} 29.
Nxb4 {[%clk 0:02:13.4]} 29... Rxd1 {[%clk 0:01:57.1]} 30. Kxd1 {[%clk
0:02:10.3]} 30... a5 {[%clk 0:01:49.9]} 31. Nd3 {[%clk 0:01:59.7]} 31... Nc6
{[%clk 0:01:47]} 32. f6+ {[%clk 0:01:54.9]} 32... Kf8 {[%clk 0:01:45.4]} 33. Bb5
{[%clk 0:01:43.3]} 33... gxf6 {[%clk 0:01:43]} 34. Rxg8+ {[%clk 0:01:39.2]}
34... Kxg8 {[%clk 0:01:41.9]} 35. exf6 {[%clk 0:01:38.2]} 35... Na7 {[%clk
0:01:25.9]} 36. Nf2 {[%clk 0:01:22.4]} 36... Nxb5 {[%clk 0:01:16.1]} 37. axb5
{[%clk 0:01:20.7]} 37... Kf8 {[%clk 0:01:15.2]} 38. Kc2 {[%clk 0:01:19.4]} 38...
Ke8 {[%clk 0:01:14.2]} 39. Kb3 {[%clk 0:01:18.2]} 39... Kd7 {[%clk 0:01:13.3]}
40. Kc4 {[%clk 0:01:04.8]} 40... Kd6 {[%clk 0:01:11.5]} 41. Kd4 {[%clk
0:00:59.8]} 41... a4 {[%clk 0:01:09.6]} 42. Nd3 {[%clk 0:00:53.8]} 42... a3
{[%clk 0:01:06.7]} 43. Nb4 {[%clk 0:00:49.8]} 43... e5+ {[%clk 0:00:58.5]} 44.
Ke3 {[%clk 0:00:44]} 44... Kc5 {[%clk 0:00:57.3]} 45. Nd3+ {[%clk 0:00:31.2]}
45... Kxb5 {[%clk 0:00:52.6]} 46. Nxe5 {[%clk 0:00:24]} 46... a2 {[%clk
0:00:51.4]} 47. Nxf7 {[%clk 0:00:22.7]} 47... a1=Q {[%clk 0:00:48.1]} 48. Nd6+
{[%clk 0:00:21.4]} 48... Kc6 {[%clk 0:00:46.4]} 49. f7 {[%clk 0:00:18.9]} 49...
Qf1 {[%clk 0:00:38]} 50. Nf5 {[%clk 0:00:14.9]} 50... Qe1+ {[%clk 0:00:29.2]}
51. Kf4 {[%clk 0:00:13.6]} 51... Qb4 {[%clk 0:00:21.2]} 52. Ke5 {[%clk
0:00:04.5]} 52... Qf8 {[%clk 0:00:02.4]} 53. Kf6 {[%clk 0:00:02.4]} 1-0

[Event "Live Chess"]
[Site "Chess.com"]
[Date "2023.05.21"]
[Round "-"]
[White "KGreenGator"]
[Black "LiamBellwood"]
[Result "1-0"]
[WhiteElo "1805"]
[BlackElo "2045"]
[TimeControl "300"]
[EndTime "17:46:34 PDT"]
[Termination "KGreenGator won by resignation"]

1. c4 {[%clk 0:04:59.2]} 1... e6 {[%clk 0:04:59.9]} 2. d4 {[%clk 0:04:57.6]}
2... f5 {[%clk 0:04:59.6]} 3. Nc3 {[%clk 0:04:55.6]} 3... Nf6 {[%clk 0:04:59.3]}
4. Nf3 {[%clk 0:04:53.9]} 4... Bb4 {[%clk 0:04:58.8]} 5. Bd2 {[%clk 0:04:51.8]}
5... Bxc3 {[%clk 0:04:55.5]} 6. Bxc3 {[%clk 0:04:50.4]} 6... Ne4 {[%clk
0:04:55.4]} 7. Qc2 {[%clk 0:04:49.3]} 7... b6 {[%clk 0:04:53.3]} 8. e3 {[%clk
0:04:48.4]} 8... Bb7 {[%clk 0:04:52.7]} 9. Be2 {[%clk 0:04:46.7]} 9... O-O
{[%clk 0:04:49.7]} 10. O-O {[%clk 0:04:45.6]} 10... d6 {[%clk 0:04:49.1]} 11.
Nd2 {[%clk 0:04:43.4]} 11... Nd7 {[%clk 0:04:48.2]} 12. Nxe4 {[%clk 0:04:42.2]}
12... Bxe4 {[%clk 0:04:45.7]} 13. Qd1 {[%clk 0:04:41.4]} 13... Nf6 {[%clk
0:04:44.3]} 14. Bf3 {[%clk 0:04:40.4]} 14... Qe8 {[%clk 0:04:40.9]} 15. b4
{[%clk 0:04:36.8]} 15... e5 {[%clk 0:04:24.8]} 16. d5 {[%clk 0:04:32.6]} 16...
Bxf3 {[%clk 0:04:19.1]} 17. Qxf3 {[%clk 0:04:30.6]} 17... Ne4 {[%clk 0:04:18.7]}
18. Rac1 {[%clk 0:04:21.8]} 18... Qg6 {[%clk 0:04:14.8]} 19. Qe2 {[%clk
0:04:17.6]} 19... f4 {[%clk 0:04:09.2]} 20. exf4 {[%clk 0:04:09.1]} 20... exf4
{[%clk 0:04:04.2]} 21. f3 {[%clk 0:04:07.8]} 21... Nxc3 {[%clk 0:03:58.4]} 22.
Rxc3 {[%clk 0:04:05.7]} 22... Rae8 {[%clk 0:03:58.3]} 23. Qd3 {[%clk 0:04:02.4]}
23... Qf5 {[%clk 0:03:43.1]} 24. Qxf5 {[%clk 0:04:00.9]} 24... Rxf5 {[%clk
0:03:43]} 25. Kf2 {[%clk 0:03:56.4]} 25... Rfe5 {[%clk 0:03:41.8]} 26. Rc2
{[%clk 0:03:52.9]} 26... Re3 {[%clk 0:03:34]} 27. g3 {[%clk 0:03:45.9]} 27... g5
{[%clk 0:03:33.5]} 28. gxf4 {[%clk 0:03:43.5]} 28... gxf4 {[%clk 0:03:33.4]} 29.
Rg1+ {[%clk 0:03:42.2]} 29... Kf7 {[%clk 0:03:33]} 30. Rg4 {[%clk 0:03:40.7]}
30... h5 {[%clk 0:03:03.1]} 31. Rxf4+ {[%clk 0:03:39.5]} 31... Kg6 {[%clk
0:03:02.8]} 32. Kg3 {[%clk 0:03:29.5]} 32... Re2 {[%clk 0:02:54.4]} 33. Rxe2
{[%clk 0:03:24]} 33... Rxe2 {[%clk 0:02:54.3]} 34. a4 {[%clk 0:03:20]} 34... Rb2
{[%clk 0:02:37.6]} 35. c5 {[%clk 0:03:14.6]} 35... Rd2 {[%clk 0:02:28.5]} 36.
cxb6 {[%clk 0:03:06.4]} 36... cxb6 {[%clk 0:02:21]} 37. Rc4 {[%clk 0:03:03.1]}
37... Rxd5 {[%clk 0:02:12.5]} 38. b5 {[%clk 0:03:01.7]} 38... Rc5 {[%clk
0:02:02.6]} 39. Rd4 {[%clk 0:02:55.1]} 39... d5 {[%clk 0:02:01.5]} 40. h4 {[%clk
0:02:48.5]} 40... Kf6 {[%clk 0:01:50]} 41. Kf4 {[%clk 0:02:46.5]} 41... Rc1
{[%clk 0:01:32.6]} 42. Rxd5 {[%clk 0:02:36.1]} 42... Rc4+ {[%clk 0:01:31.8]} 43.
Kg3 {[%clk 0:02:34.9]} 43... Rxa4 {[%clk 0:01:31.4]} 44. Rxh5 {[%clk 0:02:33.8]}
44... a5 {[%clk 0:01:24.8]} 45. bxa6 {[%clk 0:02:31.3]} 45... Rxa6 {[%clk
0:01:24.7]} 46. Rb5 {[%clk 0:02:29]} 46... Kg6 {[%clk 0:01:21.3]} 47. Kg4 {[%clk
0:02:25.9]} 47... Ra4+ {[%clk 0:01:18.4]} 48. f4 {[%clk 0:02:23.5]} 48... Ra1
{[%clk 0:01:07.7]} 49. Rxb6+ {[%clk 0:02:21.5]} 49... Kg7 {[%clk 0:01:07.1]} 50.
Kh5 {[%clk 0:02:15.1]} 50... Ra5+ {[%clk 0:01:04.6]} 51. Kg4 {[%clk 0:02:12.1]}
51... Ra1 {[%clk 0:01:03.8]} 52. Rb3 {[%clk 0:02:05.2]} 52... Ra2 {[%clk
0:00:53.2]} 53. Rg3 {[%clk 0:02:03.6]} 53... Kf6 {[%clk 0:00:49.4]} 54. h5
{[%clk 0:02:00.9]} 54... Ra7 {[%clk 0:00:46.2]} 55. Rh3 {[%clk 0:01:57.9]} 55...
Rg7+ {[%clk 0:00:44.4]} 56. Kf3 {[%clk 0:01:56.4]} 56... Rh7 {[%clk 0:00:42.7]}
57. h6 {[%clk 0:01:55]} 57... Kg6 {[%clk 0:00:41.4]} 58. Kg4 {[%clk 0:01:50.4]}
58... Rxh6 {[%clk 0:00:17.7]} 59. Rxh6+ {[%clk 0:01:49.3]} 59... Kxh6 {[%clk
0:00:17.6]} 60. Kf5 {[%clk 0:01:48.1]} 60... Kg7 {[%clk 0:00:17.3]} 61. Ke6
{[%clk 0:01:45.3]} 61... Kf8 {[%clk 0:00:15]} 62. Kf6 {[%clk 0:01:43.7]} 62...
Kg8 {[%clk 0:00:13.8]} 63. Ke7 {[%clk 0:01:39.9]} 1-0

[Event "Live Chess"]
[Site "Chess.com"]
[Date "2023.05.21"]
[Round "-"]
[White "grillage"]
[Black "luckywookie"]
[Result "1-0"]
[WhiteElo "1800"]
[BlackElo "765"]
[TimeControl "300"]
[EndTime "17:47:14 PDT"]
[Termination "grillage won by checkmate"]

1. d4 {[%clk 0:04:59.2]} 1... c6 {[%clk 0:04:57.2]} 2. Nf3 {[%clk 0:04:56.1]}
2... d5 {[%clk 0:04:56.3]} 3. c4 {[%clk 0:04:55.4]} 3... Nf6 {[%clk 0:04:53.1]}
4. Qc2 {[%clk 0:04:52.6]} 4... e6 {[%clk 0:04:47.5]} 5. Bg5 {[%clk 0:04:50.6]}
5... Nbd7 {[%clk 0:04:44.9]} 6. e3 {[%clk 0:04:47.9]} 6... Bd6 {[%clk
0:04:43.7]} 7. cxd5 {[%clk 0:04:45.4]} 7... cxd5 {[%clk 0:04:32.8]} 8. Nc3
{[%clk 0:04:43.4]} 8... a6 {[%clk 0:04:28.2]} 9. Bd3 {[%clk 0:04:37.9]} 9... b5
{[%clk 0:04:25]} 10. O-O {[%clk 0:04:34.9]} 10... Bb7 {[%clk 0:04:23.1]} 11. e4
{[%clk 0:04:25.1]} 11... dxe4 {[%clk 0:03:45.3]} 12. Nxe4 {[%clk 0:04:23.3]}
12... Rc8 {[%clk 0:03:41.5]} 13. Nxd6+ {[%clk 0:04:18.7]} 13... Kf8 {[%clk
0:03:36.8]} 14. Nxc8 {[%clk 0:04:17.7]} 14... Qxc8 {[%clk 0:03:33.7]} 15. Qxc8+
{[%clk 0:04:16.2]} 15... Bxc8 {[%clk 0:03:32.9]} 16. Rac1 {[%clk 0:04:13.2]}
16... Bb7 {[%clk 0:03:27.3]} 17. Rc7 {[%clk 0:04:05.8]} 17... Bxf3 {[%clk
0:03:25.8]} 18. gxf3 {[%clk 0:04:02.5]} 18... h6 {[%clk 0:03:21.6]} 19. Bxf6
{[%clk 0:04:01]} 19... Nxf6 {[%clk 0:03:18.3]} 20. Rc8+ {[%clk 0:03:58.4]} 20...
Ne8 {[%clk 0:03:15.7]} 21. Rfc1 {[%clk 0:03:53.4]} 21... g6 {[%clk 0:03:09.6]}
22. Ra8 {[%clk 0:03:51]} 22... f6 {[%clk 0:03:02.8]} 23. Rcc8 {[%clk 0:03:49.4]}
23... e5 {[%clk 0:03:01.4]} 24. dxe5 {[%clk 0:03:47.4]} 24... f5 {[%clk
0:02:58.7]} 25. Rxa6 {[%clk 0:03:39.7]} 25... Rh7 {[%clk 0:02:58.6]} 26. Raa8
{[%clk 0:03:36.5]} 26... Rc7 {[%clk 0:02:57.6]} 27. Rxe8+ {[%clk 0:03:34.3]}
27... Kf7 {[%clk 0:02:54.1]} 28. Bxb5 {[%clk 0:03:31.3]} 28... Rc1+ {[%clk
0:02:51]} 29. Kg2 {[%clk 0:03:30.4]} 29... f4 {[%clk 0:02:46.2]} 30. Ra6 {[%clk
0:03:14.7]} 30... h5 {[%clk 0:02:43.3]} 31. Rb8 {[%clk 0:03:10.5]} 31... Rc7
{[%clk 0:02:33.4]} 32. Rc6 {[%clk 0:03:01.1]} 32... Rxc6 {[%clk 0:02:29.2]} 33.
Bxc6 {[%clk 0:02:59.8]} 33... Ke6 {[%clk 0:02:28.3]} 34. a4 {[%clk 0:02:55.4]}
34... Kxe5 {[%clk 0:02:27.3]} 35. a5 {[%clk 0:02:53.3]} 35... Kd6 {[%clk
0:02:26.6]} 36. Be4 {[%clk 0:02:49.2]} 36... Kc7 {[%clk 0:02:25.5]} 37. a6
{[%clk 0:02:48.3]} 37... Kxb8 {[%clk 0:02:24.1]} 38. b4 {[%clk 0:02:45.4]} 38...
Ka7 {[%clk 0:02:22.4]} 39. b5 {[%clk 0:02:44.3]} 39... g5 {[%clk 0:02:19.7]} 40.
h4 {[%clk 0:02:37.6]} 40... gxh4 {[%clk 0:02:17.1]} 41. Kh3 {[%clk 0:02:36.3]}
41... Kb6 {[%clk 0:02:13.2]} 42. Kxh4 {[%clk 0:02:35.1]} 42... Ka7 {[%clk
0:02:12.1]} 43. Kxh5 {[%clk 0:02:34.3]} 43... Kb6 {[%clk 0:02:11.1]} 44. Kg4
{[%clk 0:02:33.7]} 44... Kxb5 {[%clk 0:02:10.3]} 45. a7 {[%clk 0:02:32.6]} 45...
Kb6 {[%clk 0:02:09.6]} 46. a8=Q {[%clk 0:02:31.4]} 46... Kc7 {[%clk 0:02:09.1]}
47. Qd5 {[%clk 0:02:29.7]} 47... Kb6 {[%clk 0:02:06.9]} 48. Qc6+ {[%clk
0:02:27.7]} 48... Ka5 {[%clk 0:02:05.5]} 49. Kxf4 {[%clk 0:02:21.3]} 49... Kb4
{[%clk 0:02:04.5]} 50. Ke5 {[%clk 0:02:17.2]} 50... Kb3 {[%clk 0:02:02.9]} 51.
Kd4 {[%clk 0:02:16.6]} 51... Kb4 {[%clk 0:02:01.1]} 52. Qb6+ {[%clk 0:02:15.2]}
52... Ka3 {[%clk 0:01:58.9]} 53. Kc3 {[%clk 0:02:13.4]} 53... Ka2 {[%clk
0:01:57.7]} 54. Qb2# {[%clk 0:02:12.2]} 1-0

[Event "Live Chess"]
[Site "Chess.com"]
[Date "2023.05.21"]
[Round "-"]
[White "GMHarry-youtube"]
[Black "Baturin_Yevgeniy"]
[Result "1-0"]
[WhiteElo "2040"]
[BlackElo "1810"]
[TimeControl "300"]
[EndTime "17:47:21 PDT"]
[Termination "GMHarry-youtube won by checkmate"]

1. e4 {[%clk 0:04:59.1]} 1... e6 {[%clk 0:04:55]} 2. d4 {[%clk 0:04:57]} 2... d5
{[%clk 0:04:50.5]} 3. e5 {[%clk 0:04:56.2]} 3... c5 {[%clk 0:04:48.1]} 4. c3
{[%clk 0:04:54.2]} 4... Qb6 {[%clk 0:04:46.2]} 5. Nf3 {[%clk 0:04:50.7]} 5...
Nc6 {[%clk 0:04:43.4]} 6. Bd3 {[%clk 0:04:49.2]} 6... Bd7 {[%clk 0:04:07.7]} 7.
dxc5 {[%clk 0:04:44.7]} 7... Bxc5 {[%clk 0:03:58.4]} 8. Qe2 {[%clk 0:04:43.7]}
8... a5 {[%clk 0:03:54.4]} 9. Nbd2 {[%clk 0:04:38.7]} 9... Nge7 {[%clk
0:03:43.6]} 10. Nb3 {[%clk 0:04:32]} 10... Ng6 {[%clk 0:03:26.6]} 11. h4 {[%clk
0:04:26.4]} 11... a4 {[%clk 0:03:12.3]} 12. Nxc5 {[%clk 0:04:07]} 12... Qxc5
{[%clk 0:03:12.2]} 13. h5 {[%clk 0:04:06.5]} 13... Nge7 {[%clk 0:03:04.9]} 14.
h6 {[%clk 0:04:06.4]} 14... g6 {[%clk 0:02:57]} 15. Bg5 {[%clk 0:04:00.1]} 15...
a3 {[%clk 0:02:49.8]} 16. Bf6 {[%clk 0:03:51.4]} 16... O-O {[%clk 0:02:19]} 17.
Nh2 {[%clk 0:03:42.2]} 17... axb2 {[%clk 0:02:12.1]} 18. Qxb2 {[%clk 0:03:40.3]}
18... d4 {[%clk 0:02:07.5]} 19. Ng4 {[%clk 0:03:37.9]} 19... Qxc3+ {[%clk
0:02:00.1]} 20. Qxc3 {[%clk 0:03:36.2]} 20... dxc3 {[%clk 0:02:00]} 21. Bg7
{[%clk 0:03:35.5]} 21... Rfd8 {[%clk 0:01:57.3]} 22. Nf6# {[%clk 0:03:34.7]} 1-0